bitfinex/quotes_SOLUSD_20240908
["timestamp","ask_amount","ask_price","bid_price","bid_amount"]
[1725761463228,16.0436,128.39,128.36,10.39634013]
[1725761463526,16.0436,128.39,128.37,20.0]
[1725761464234,22.3923,128.42,128.37,20.0]
[1725761465531,45.0,128.41,128.37,20.0]
[1725761470650,45.0,128.41,128.35,10.39634013]
[1725761470926,45.0,128.41,128.36,20.0]
[1725761479035,1.9472079,128.4,128.36,20.0]
[1725761479215,1.9472079,128.4,128.34,20.0]
[1725761479422,1.94757542,128.39,128.34,20.0]
[1725761480039,16.5386,128.38,128.32,20.0]
[1725761482022,22.7502,128.38,128.32,20.0]
[1725761482839,1.94783879,128.37,128.32,20.0]
[1725761483326,22.7502,128.38,128.32,20.0]
[1725761483721,22.7502,128.38,128.33,10.39634013]
[1725761483936,22.7502,128.38,128.34,20.0]
[1725761485132,21.7736,128.41,128.35,10.39634013]
[1725761485334,21.7736,128.41,128.36,20.0]
[1725761486046,45.0,128.4,128.36,20.0]
[1725761492553,21.7736,128.41,128.36,20.0]
[1725761494251,21.7736,128.41,128.36,21.5612958]
[1725761497058,21.7736,128.41,128.36,20.0]
[1725761497239,21.7736,128.41,128.36,21.56125991]
[1725761497436,22.3801805,128.44,128.39,10.39634013]
[1725761497642,22.3801805,128.44,128.4,20.0]
[1725761513665,0.6065805,128.44,128.4,20.0]
[1725761524486,0.6065805,128.44,128.41,10.39634013]
[1725761524666,0.6065805,128.44,128.42,20.0]
[1725761527989,0.6065805,128.44,128.38,20.0]
[1725761528172,0.6065805,128.44,128.38,30.39634013]
[1725761531784,0.6065805,128.44,128.4,10.39634013]
[1725761531966,0.6065805,128.44,128.41,20.0]
[1725761541082,0.6065805,128.44,128.38,20.0]
[1725761541274,0.6065805,128.44,128.41,10.39634013]
[1725761541470,0.6065805,128.44,128.42,20.0]
[1725761554393,0.6065805,128.44,128.43,10.39634013]
[1725761554705,6.5717,128.5,128.43,30.39634013]
[1725761554881,6.5717,128.5,128.46,10.39634013]
[1725761555081,6.5717,128.5,128.47,20.0]
[1725761556300,45.0,128.49,128.42,20.0]
[1725761556597,45.0,128.49,128.43,10.39634013]
[1725761556901,45.0,128.49,128.44,20.0]
[1725761561983,6.5717,128.5,128.44,20.0]
[1725761563103,6.5717,128.5,128.44,30.39634013]
[1725761576029,6.5717,128.5,128.44,20.0]
[1725761576219,45.0,128.49,128.42,20.0]
[1725761576417,45.0,128.49,128.42,30.39634013]
[1725761578328,45.0,128.49,128.42,20.0]
[1725761581932,45.0,128.49,128.43,10.39634013]
[1725761582232,45.0,128.49,128.44,20.0]
[1725761583234,45.0,128.49,128.42,20.0]
[1725761586736,45.0,128.49,128.43,10.39634013]
[1725761586920,45.0,128.49,128.44,20.0]
[1725761587937,6.5717,128.5,128.44,20.0]
[1725761588327,6.5717,128.5,128.42,30.39634013]
[1725761589136,45.0,128.49,128.42,30.39634013]
[1725761597240,6.5717,128.5,128.42,30.39634013]
[1725761597930,6.5717,128.5,128.42,36.42564013]
[1725761604844,16.0937,128.51,128.42,36.42564013]
[1725761605053,45.0,128.5,128.42,36.42564013]
[1725761613465,16.0937,128.51,128.44,10.39634013]
[1725761613645,16.0937,128.51,128.45,20.0]
[1725761614560,6.0144,128.53,128.45,20.0]
[1725761614755,45.0,128.52,128.45,20.0]
[1725761617068,46.9455822,128.53,128.45,20.0]
[1725761617566,45.0,128.53,128.45,20.0]
[1725761624378,45.0,128.53,128.46,1.56014525]
[1725761624678,45.0,128.53,128.45,20.0]
[1725761624679,45.0,128.53,128.47,1.56014525]
[1725761624875,45.0,128.53,128.45,20.0]
[1725761625252,45.0,128.53,128.46,1.56015421]
[1725761625873,45.0,128.53,128.47,1.56015421]
[1725761626075,45.0,128.53,128.45,20.0]
[1725761626262,45.0,128.53,128.46,11.95648441]
[1725761626574,45.0,128.53,128.47,21.56014428]
[1725761626770,45.0,128.53,128.47,20.0]
[1725761627281,45.0,128.53,128.48,1.56014428]
[1725761628675,45.0,128.53,128.47,20.0]
[1725761629379,45.0,128.53,128.48,1.56014379]
[1725761629554,45.0,128.53,128.47,20.0]
[1725761629752,45.0,128.53,128.48,1.56014379]
[1725761629954,45.0,128.53,128.47,20.0]
[1725761630176,45.0,128.53,128.48,1.56014427]
[1725761630377,45.0,128.53,128.47,20.0]
[1725761630673,45.0,128.53,128.48,1.56014379]
[1725761630854,45.0,128.53,128.47,20.0]
[1725761631055,45.0,128.53,128.48,1.56014379]
[1725761631255,45.0,128.53,128.47,20.0]
[1725761631460,45.0,128.53,128.48,1.56012742]
[1725761631656,45.0,128.53,128.47,20.0]
[1725761632276,45.0,128.53,128.48,1.56012742]
[1725761632655,45.0,128.53,128.47,20.0]
[1725761634368,45.0,128.53,128.47,35.5272]
[1725761634581,16.1971063,128.57,128.48,10.39634013]
[1725761634757,16.1971063,128.57,128.47,35.5272]
[1725761634758,0.8811063,128.57,128.5,10.39634013]
[1725761634963,0.8811063,128.57,128.51,35.5272]
[1725761636061,1.94492062,128.56,128.51,20.0]
[1725761636262,23.42,128.56,128.5,20.0]
[1725761636468,23.42,128.56,128.48,20.0]
[1725761637372,45.0,128.55,128.48,20.0]
[1725761638690,23.42,128.54,128.48,20.0]
[1725761638862,45.0,128.53,128.48,20.0]
[1725761639060,45.0,128.55,128.48,20.0]
[1725761639981,68.42,128.56,128.48,20.0]
[1725761643482,23.42,128.54,128.48,20.0]
[1725761643686,46.94578907,128.53,128.48,20.0]
[1725761643867,45.0,128.53,128.48,20.0]
[1725761644385,45.0,128.54,128.48,20.0]
[1725761646697,46.94566564,128.54,128.48,20.0]
[1725761647489,45.0,128.54,128.48,20.0]
[1725761647793,46.94566355,128.54,128.48,20.0]
[1725761648280,70.36566355,128.54,128.48,20.0]
[1725761649989,23.42,128.52,128.45,20.0]
[1725761650165,46.9459848,128.51,128.45,20.0]
[1725761652689,70.3659848,128.51,128.45,20.0]
[1725761656294,23.42,128.49,128.45,20.0]
[1725761656502,45.0,128.48,128.42,20.0]
[1725761656676,46.94655948,128.48,128.42,20.0]
[1725761657699,45.0,128.48,128.42,20.0]
[1725761658996,46.94650444,128.48,128.42,20.0]
[1725761660080,70.36650444,128.48,128.42,20.0]
[1725761670097,85.45010444,128.48,128.42,20.0]
[1725761673916,85.45010444,128.48,128.4,20.0]
[1725761674093,85.45010444,128.48,128.39,20.0]
[1725761676306,6.5705,128.47,128.39,20.0]
[1725761676489,46.94674928,128.46,128.39,20.0]
[1725761676689,1.94675018,128.45,128.39,20.0]
[1725761677509,68.42,128.46,128.39,20.0]
[1725761678193,45.0,128.46,128.39,20.0]
[1725761681411,6.5705,128.47,128.39,30.39634013]
[1725761682896,45.0,128.46,128.39,30.39634013]
[1725761685415,45.0,128.46,128.41,10.39634013]
[1725761685625,45.0,128.47,128.42,20.0]
[1725761698200,6.3702,128.5,128.42,35.3763]
[1725761699603,16.0223,128.51,128.42,35.3763]
[1725761699797,45.0,128.5,128.42,35.3763]
[1725761700503,45.0,128.5,128.43,10.39634013]
[1725761700727,45.0,128.5,128.44,20.0]
[1725761701020,6.5664,128.53,128.44,20.0]
[1725761701321,8.51222418,128.53,128.44,20.0]
[1725761702132,6.5664,128.56,128.47,10.39634013]
[1725761702306,6.5664,128.56,128.48,20.0]
[1725761703420,45.0,128.55,128.48,20.0]
[1725761704415,1.94533941,128.54,128.48,20.0]
[1725761704936,45.0,128.55,128.46,20.0]
[1725761705307,46.94553537,128.55,128.46,20.0]
[1725761705806,45.0,128.55,128.46,20.0]
[1725761706008,46.94553544,128.55,128.46,20.0]
[1725761707325,45.0,128.55,128.46,20.0]
[1725761707723,45.0,128.55,128.47,10.39634013]
[1725761707923,45.0,128.55,128.48,20.0]
[1725761715109,45.0,128.55,128.47,10.39634013]
[1725761715314,45.0,128.55,128.48,20.0]
[1725761715827,0.8811063,128.57,128.49,26.80404013]
[1725761716036,0.8811063,128.57,128.5,26.5927]
[1725761717533,45.8811063,128.57,128.5,26.5927]
[1725761724137,47.43527644,128.57,128.5,26.5927]
[1725761724436,47.43527644,128.57,128.5,20.0]
[1725761724843,45.8811063,128.57,128.5,20.0]
[1725761727026,47.82628848,128.57,128.5,20.0]
[1725761727223,79.02438848,128.57,128.5,20.0]
[1725761727555,7.7784,128.56,128.5,20.0]
[1725761727724,46.94551577,128.55,128.5,20.0]
[1725761727920,1.94551546,128.54,128.5,20.0]
[1725761730449,1.94551546,128.54,128.47,6.2224]
[1725761730826,76.1992,128.55,128.47,6.2224]
[1725761731745,76.1992,128.55,128.48,20.0]
[1725761732645,52.7792,128.55,128.48,20.0]
[1725761733443,54.72473112,128.55,128.48,20.0]
[1725761734159,1.94553028,128.54,128.48,20.0]
[1725761735728,1.94554299,128.53,128.48,20.0]
[1725761736231,46.94554299,128.53,128.48,20.0]
[1725761737651,46.94554299,128.53,128.47,20.0]
[1725761738046,7.7811,128.52,128.47,20.0]
[1725761738242,7.7825,128.5,128.43,22.5484]
[1725761738450,46.94640914,128.49,128.43,16.326]
[1725761738652,1.94649627,128.48,128.43,16.326]
[1725761739936,1.94649627,128.48,128.44,20.0]
[1725761740751,1.94649627,128.48,128.41,20.0]
[1725761741057,9.72989627,128.48,128.41,20.0]
[1725761741260,45.0,128.47,128.41,20.0]
[1725761742238,45.0,128.48,128.41,20.0]
[1725761743759,52.7838,128.48,128.41,20.0]
[1725761744107,1.94676766,128.47,128.41,20.0]
[1725761744561,9.73066766,128.47,128.41,20.0]
[1725761744747,45.0,128.46,128.38,20.0]
[1725761744943,17.60028885,128.45,128.37,22.3406]
[1725761745137,45.0,128.44,128.37,15.9521]
[1725761745450,1.94713105,128.43,128.37,15.9521]
[1725761746840,1.94713105,128.43,128.38,20.0]
[1725761749065,1.94713105,128.43,128.35,20.0]
[1725761749955,45.0,128.44,128.35,20.0]
[1725761755267,45.0,128.44,128.36,10.39634013]
[1725761755463,45.0,128.44,128.37,20.0]
[1725761762058,52.7858,128.44,128.37,20.0]
[1725761762245,52.7858,128.44,128.35,20.0]
[1725761763172,45.0,128.44,128.35,20.0]
[1725761765257,6.346,128.43,128.35,20.0]
[1725761765574,16.5428,128.41,128.34,20.0]
[1725761765747,46.94748823,128.4,128.34,20.0]
[1725761765949,1.94748827,128.39,128.34,20.0]
[1725761769375,45.0,128.4,128.34,20.0]
[1725761770653,1.94769057,128.39,128.34,20.0]
[1725761770851,1.94769057,128.39,128.32,20.0]
[1725761771080,8.29369057,128.39,128.32,20.0]
[1725761771248,45.0,128.38,128.32,20.0]
[1725761774106,45.0,128.38,128.31,20.0]
[1725761775563,16.5428,128.37,128.31,20.0]
[1725761775766,45.0,128.36,128.31,20.0]
[1725761776576,1.9481511,128.35,128.29,20.0]
[1725761776881,1.9481511,128.35,128.28,20.0]
[1725761777776,45.0,128.36,128.28,20.0]
[1725761777980,6.346,128.35,128.25,6.6169]
[1725761778170,6.346,128.35,128.27,10.39634013]
[1725761778371,45.0,128.34,128.27,10.39634013]
[1725761779180,45.0,128.34,128.28,20.0]
[1725761781564,45.0,128.34,128.26,30.39634013]
[1725761781782,45.0,128.34,128.26,20.0]
[1725761781984,18.491323,128.33,128.26,20.0]
[1725761782167,45.0,128.32,128.25,30.39634013]
[1725761782369,45.0,128.32,128.25,20.0]
[1725761782582,46.94872102,128.32,128.24,20.0]
[1725761782787,45.0,128.32,128.24,20.0]
[1725761783786,45.0,128.32,128.24,30.39634013]
[1725761788765,24.02521632,128.31,128.24,20.0]
[1725761788966,45.0,128.3,128.23,30.39634013]
[1725761791074,45.0,128.3,128.2,8.12921015]
[1725761791075,15.8565,128.28,128.2,8.12921015]
[1725761791272,53.16929902,128.27,128.21,10.39634013]
[1725761791892,53.16929902,128.27,128.2,8.12921015]
[1725761792092,51.2199,128.27,128.2,8.12921015]
[1725761792269,51.2199,128.27,128.19,10.39634013]
[1725761793477,51.2199,128.27,128.2,20.0]
[1725761794197,51.2199,128.27,128.2,30.39634013]
[1725761795192,1.94964062,128.26,128.2,20.0]
[1725761797272,15.738,128.25,128.2,20.0]
[1725761797577,6.2213,128.23,128.2,20.0]
[1725761797779,6.2213,128.23,128.17,20.0]
[1725761797780,45.0,128.22,128.17,20.0]
[1725761798882,15.738,128.21,128.17,20.0]
[1725761799082,15.738,128.21,128.16,10.39634013]
[1725761799281,15.738,128.21,128.17,20.0]
[1725761800367,15.738,128.21,128.18,10.39634013]
[1725761800567,15.738,128.21,128.19,20.0]
[1725761803270,15.738,128.21,128.16,10.39634013]
[1725761803477,6.2213,128.23,128.13,20.0]
[1725761803478,6.2213,128.23,128.18,10.39634013]
[1725761803695,6.2213,128.23,128.19,20.0]
[1725761806777,45.0,128.22,128.19,20.0]
[1725761807287,6.2213,128.23,128.19,20.0]
[1725761818807,8.17121034,128.23,128.19,20.0]
[1725761819589,6.2213,128.23,128.19,20.0]
[1725761819986,8.17126105,128.23,128.19,20.0]
[1725761820382,6.2213,128.23,128.19,20.0]
[1725761822493,16.5702,128.24,128.19,20.0]
[1725761822701,45.0,128.23,128.19,20.0]
[1725761823685,46.94995859,128.23,128.19,20.0]
[1725761824114,46.94995859,128.23,128.2,20.0]
[1725761824405,46.94995859,128.23,128.17,30.39634013]
[1725761825012,46.94995859,128.23,128.17,20.0]
[1725761825193,46.94995859,128.23,128.17,30.39634013]
[1725761828393,46.94995859,128.23,128.17,29.89634013]
[1725761829202,46.94995859,128.23,128.17,19.5]
[1725761829404,46.94995859,128.23,128.15,10.39634013]
[1725761829716,6.4794,128.22,128.15,10.39634013]
[1725761829913,46.9503084,128.21,128.15,9.89634013]
[1725761830092,1.95030995,128.2,128.15,9.89634013]
[1725761830288,1.95030995,128.2,128.12,22.14727963]
[1725761830602,45.0,128.21,128.14,10.39634013]
[1725761830806,45.0,128.21,128.15,20.0]
[1725761831401,45.0,128.21,128.15,30.39634013]
[1725761834396,15.7307,128.2,128.15,20.0]
[1725761834622,45.0,128.19,128.13,30.39634013]
[1725761839303,45.0,128.19,128.15,10.39634013]
[1725761839506,15.7307,128.2,128.16,20.0]
[1725761849829,45.0,128.19,128.16,20.0]
[1725761850232,45.0,128.19,128.14,20.0]
[1725761854229,45.0,128.19,128.14,30.39634013]
[1725761864035,45.0,128.19,128.14,20.0]
[1725761864220,6.0417,128.18,128.12,10.39634013]
[1725761864426,6.0417,128.18,128.13,20.0]
[1725761864831,45.0,128.17,128.13,20.0]
[1725761868124,46.95089049,128.17,128.12,10.39634013]
[1725761868327,46.95089049,128.17,128.13,20.0]
[1725761870527,45.0,128.17,128.13,20.0]
[1725761871052,46.9509107,128.17,128.13,20.0]
[1725761872850,45.0,128.17,128.13,20.0]
[1725761873048,45.0,128.17,128.14,1.56386671]
[1725761873347,45.0,128.17,128.15,1.56386671]
[1725761873544,46.95091096,128.17,128.16,1.56386671]
[1725761873743,46.95091096,128.17,128.14,1.56386671]
[1725761873929,46.95091096,128.17,128.15,1.56386671]
[1725761874139,46.95091096,128.17,128.16,1.56386671]
[1725761874330,46.95091096,128.17,128.13,20.0]
[1725761874650,45.0,128.17,128.14,1.56386562]
[1725761874951,45.0,128.17,128.15,1.56386562]
[1725761875254,45.0,128.17,128.16,1.56386562]
[1725761877864,45.0,128.17,128.13,20.0]
[1725761878036,45.0,128.17,128.16,1.56386562]
[1725761878440,45.0,128.17,128.14,1.56386562]
[1725761878641,45.0,128.17,128.15,1.56386562]
[1725761878845,45.0,128.17,128.16,1.56386562]
[1725761879036,45.0,128.17,128.15,1.56386562]
[1725761879242,45.0,128.17,128.16,1.56386562]
[1725761879554,45.0,128.17,128.14,1.56386562]
[1725761879734,45.0,128.17,128.15,1.56386562]
[1725761879935,45.0,128.17,128.16,1.56386562]
[1725761880135,45.0,128.17,128.14,1.56386562]
[1725761880336,45.0,128.17,128.15,1.56386562]
[1725761880666,45.0,128.17,128.16,1.56386562]
[1725761880838,45.0,128.17,128.12,21.56386562]
[1725761881036,45.0,128.17,128.13,1.56386562]
[1725761881258,45.0,128.17,128.14,1.56386562]
[1725761881643,45.0,128.17,128.15,1.56386562]
[1725761882031,45.0,128.17,128.16,1.56386562]
[1725761882331,45.0,128.17,128.13,1.56386562]
[1725761882532,45.0,128.17,128.14,1.56386562]
[1725761882745,45.0,128.17,128.15,1.56386562]
[1725761883149,45.0,128.17,128.16,1.56386562]
[1725761883343,6.0417,128.18,128.13,11.96020575]
[1725761883539,15.7307,128.2,128.15,10.39634013]
[1725761883749,15.7307,128.2,128.16,21.56386562]
[1725761883951,15.7307,128.2,128.17,1.56386562]
[1725761884161,15.7307,128.2,128.16,20.0]
[1725761884560,6.5049,128.21,128.17,11.96007259]
[1725761884759,6.5049,128.21,128.18,20.0]
[1725761884945,6.5049,128.21,128.18,21.56373246]
[1725761885146,6.5049,128.21,128.19,1.56373246]
[1725761885543,6.5049,128.21,128.18,20.0]
[1725761885747,6.5049,128.21,128.19,1.56349444]
[1725761887369,6.5049,128.21,128.18,20.0]
[1725761887563,6.5049,128.21,128.19,1.56349444]
[1725761888354,16.3889,128.23,128.2,1.56349444]
[1725761888644,16.3889,128.23,128.21,1.56332946]
[1725761888855,16.3889,128.23,128.2,1.56332946]
[1725761889063,16.3889,128.23,128.21,1.56332946]
[1725761889657,16.3889,128.23,128.17,10.39634013]
[1725761889967,45.0,128.22,128.18,21.56332946]
[1725761890173,45.0,128.22,128.19,1.56332946]
[1725761890362,45.0,128.22,128.2,1.56332946]
[1725761890664,45.0,128.22,128.19,1.56332946]
[1725761890851,45.0,128.22,128.18,20.0]
[1725761892657,45.0,128.22,128.17,20.0]
[1725761897372,45.0,128.22,128.18,10.39634013]
[1725761897551,45.0,128.22,128.19,20.0]
[1725761908264,45.0,128.22,128.2,20.0]
[1725761908465,45.0,128.22,128.17,20.0]
[1725761912777,16.3889,128.23,128.18,10.39634013]
[1725761912990,16.3889,128.23,128.19,20.0]
[1725761917694,6.5049,128.25,128.19,20.0]
[1725761917988,45.0,128.24,128.19,20.0]
[1725761921186,45.0,128.24,128.19,30.39634013]
[1725761927580,45.0,128.25,128.19,30.39634013]
[1725761937794,6.4249,128.28,128.23,10.39634013]
[1725761938002,6.4249,128.28,128.24,20.0]
[1725761938499,8.37425387,128.28,128.24,20.0]
[1725761938697,6.4249,128.28,128.24,20.0]
[1725761939103,45.0,128.27,128.24,20.0]
[1725761939406,45.0,128.27,128.22,30.39634013]
[1725761940696,1.94936047,128.26,128.22,30.39634013]
[1725761940897,1.94936047,128.26,128.22,20.0]
[1725761941095,1.94936047,128.26,128.19,10.39634013]
[1725761942610,1.94936047,128.26,128.2,20.0]
[1725761943197,45.0,128.27,128.2,20.0]
[1725761943505,46.94978253,128.27,128.2,20.0]
[1725761947101,1.94978085,128.26,128.2,20.0]
[1725761949008,45.0,128.27,128.21,10.39634013]
[1725761949185,45.0,128.27,128.22,20.0]
[1725761950186,1.94947172,128.26,128.22,20.0]
[1725761951914,45.0,128.27,128.22,20.0]
[1725761952203,1.54972689,128.26,128.22,20.0]
[1725761955709,45.0,128.27,128.23,10.39634013]
[1725761955910,45.0,128.27,128.24,20.0]
[1725761957802,1.94945625,128.26,128.24,20.0]
[1725761958408,45.0,128.27,128.24,20.0]
[1725761959105,1.94945429,128.26,128.24,20.0]
[1725761960596,46.94945446,128.27,128.24,20.0]
[1725761960998,45.0,128.27,128.24,20.0]
[1725761970324,46.94944423,128.27,128.24,20.0]
[1725761970922,45.0,128.27,128.24,20.0]
[1725761972526,46.94944159,128.27,128.24,20.0]
[1725761973307,45.0,128.27,128.24,20.0]
[1725761978708,45.0,128.28,128.24,20.0]
[1725761985415,6.1885,128.34,128.27,10.39634013]
[1725761985632,6.1885,128.34,128.29,10.39634013]
[1725761985937,21.6074,128.38,128.31,10.39634013]
[1725761986122,21.6074,128.38,128.33,10.39634013]
[1725761986311,21.6074,128.38,128.34,20.0]
[1725761987236,21.6074,128.38,128.32,10.39634013]
[1725761987534,21.6074,128.38,128.33,20.0]
[1725761988041,45.0,128.37,128.33,20.0]
[1725761988718,1.94816163,128.36,128.33,20.0]
[1725761988918,46.94814189,128.37,128.31,20.0]
[1725761989725,45.0,128.37,128.31,20.0]
[1725761992444,1.94817826,128.36,128.31,20.0]
[1725761997215,1.94817716,128.35,128.31,20.0]
[1725761998839,1.94839851,128.36,128.31,20.0]
[1725761999136,1.94839851,128.36,128.32,20.0]
[1725761999436,1.94839851,128.36,128.29,20.0]
[1725761999633,45.0,128.37,128.3,10.39634013]
[1725761999843,45.0,128.37,128.31,20.0]
[1725762001018,21.6074,128.38,128.32,10.39634013]
[1725762001219,1.94790661,128.37,128.33,20.0]
[1725762001524,21.6074,128.38,128.33,20.0]
[1725762002347,46.9479027,128.37,128.33,20.0]
[1725762003742,46.9479027,128.37,128.29,10.39634013]
[1725762003922,45.0,128.37,128.31,10.39634013]
[1725762004247,21.6074,128.38,128.32,20.0]
[1725762004540,21.6074,128.38,128.33,10.39634013]
[1725762004732,21.6074,128.38,128.34,20.0]
[1725762005852,45.0,128.37,128.34,20.0]
[1725762013031,32.05540577,128.42,128.34,20.0]
[1725762014350,45.0,128.41,128.34,20.0]
[1725762014555,1.94771465,128.4,128.34,20.0]
[1725762014849,1.9477155,128.39,128.34,20.0]
[1725762015030,45.0,128.41,128.34,20.0]
[1725762018455,30.1075,128.42,128.37,10.39634013]
[1725762018456,22.3205,128.42,128.37,10.39634013]
[1725762018668,15.6857,128.42,128.38,20.0]
[1725762019155,1.94736268,128.41,128.35,10.39634013]
[1725762019337,1.94736268,128.41,128.36,20.0]
[1725762019946,46.94736268,128.41,128.36,20.0]
[1725762020149,45.0,128.41,128.34,20.0]
[1725762021441,1.94758548,128.4,128.35,10.39634013]
[1725762021779,1.94755859,128.39,128.36,20.0]
[1725762022060,46.94755859,128.39,128.36,20.0]
[1725762022354,45.0,128.39,128.36,20.0]
[1725762024538,15.6857,128.42,128.36,20.0]
[1725762025352,1.94747804,128.41,128.36,20.0]
[1725762025748,46.94747804,128.41,128.36,20.0]
[1725762026268,45.0,128.41,128.36,20.0]
[1725762032466,1.94744262,128.4,128.36,20.0]
[1725762032678,45.0,128.4,128.37,20.0]
[1725762033041,45.0,128.41,128.37,20.0]
[1725762033249,45.0,128.41,128.34,10.39634013]
[1725762033448,45.0,128.41,128.35,20.0]
[1725762034551,45.0,128.41,128.36,10.39634013]
[1725762034764,45.0,128.41,128.37,20.0]
[1725762039072,46.94733959,128.41,128.37,20.0]
[1725762039251,46.94733959,128.41,128.36,10.39634013]
[1725762039451,46.94733959,128.41,128.37,20.0]
[1725762040762,45.0,128.41,128.37,20.0]
[1725762042054,45.0,128.41,128.36,20.0]
[1725762042255,1.9475101,128.4,128.36,20.0]
[1725762042647,1.94755329,128.39,128.36,20.0]
[1725762043368,1.94755868,128.4,128.36,20.0]
[1725762043563,1.94757349,128.39,128.36,20.0]
[1725762044759,1.94756924,128.4,128.36,20.0]
[1725762045472,15.6857,128.42,128.37,10.39634013]
[1725762045645,15.6857,128.42,128.38,20.0]
[1725762046272,17.63305799,128.42,128.38,20.0]
[1725762046775,45.0,128.41,128.38,20.0]
[1725762050470,45.0,128.41,128.32,15.7991]
[1725762050471,51.4338,128.41,128.34,10.39634013]
[1725762050672,51.4338,128.41,128.35,20.0]
[1725762059664,6.4338,128.41,128.36,10.39634013]
[1725762059881,6.4338,128.41,128.37,20.0]
[1725762060769,45.0,128.4,128.37,20.0]
[1725762066888,45.0,128.4,128.38,10.39634013]
[1725762067187,45.0,128.4,128.39,20.0]
[1725762067374,6.4785,128.44,128.39,20.0]
[1725762068803,45.0,128.43,128.39,20.0]
[1725762075092,46.94693872,128.43,128.39,20.0]
[1725762075276,46.94693872,128.43,128.37,30.39634013]
[1725762075474,45.0,128.43,128.37,30.39634013]
[1725762076174,45.0,128.43,128.38,1.56132879]
[1725762078689,45.0,128.43,128.39,10.39634013]
[1725762078876,45.0,128.44,128.4,20.0]
[1725762080574,21.6979,128.48,128.41,10.39634013]
[1725762080793,23.64444669,128.48,128.42,20.0]
[1725762081781,45.0,128.47,128.42,20.0]
[1725762081982,1.94668605,128.46,128.42,20.0]
[1725762082285,1.946679,128.45,128.42,20.0]
[1725762083196,45.0,128.47,128.42,20.0]
[1725762085487,1.94654507,128.46,128.42,20.0]
[1725762085687,1.94679324,128.45,128.38,11.95760261]
[1725762085903,1.94679324,128.45,128.39,20.0]
[1725762086995,23.45,128.46,128.39,20.0]
[1725762087187,45.0,128.45,128.37,21.56126248]
[1725762087590,1.94720182,128.44,128.37,21.56126248]
[1725762088099,1.94720182,128.44,128.37,20.0]
[1725762088478,25.39720182,128.44,128.37,21.5612968]
[1725762088799,45.0,128.43,128.37,21.5612968]
[1725762089101,45.0,128.44,128.37,21.5612968]
[1725762090704,1.94720768,128.43,128.37,20.0]
[1725762090879,1.94740802,128.42,128.37,20.0]
[1725762091883,1.94740802,128.42,128.35,21.5612968]
[1725762092082,46.94740802,128.42,128.35,21.5612968]
[1725762095707,1.9475122,128.41,128.35,21.5612968]
[1725762095922,46.9475122,128.41,128.33,21.5612968]
[1725762096206,45.0,128.41,128.34,11.95763693]
[1725762096406,45.0,128.41,128.35,21.5612968]
[1725762096605,45.0,128.42,128.35,21.5612968]
[1725762098211,45.0,128.42,128.35,21.56159088]
[1725762098390,68.45,128.42,128.35,21.56159088]
[1725762098709,68.45,128.42,128.36,20.0]
[1725762098897,68.45,128.42,128.34,1.56159088]
[1725762099321,7.7876,128.41,128.34,1.56159088]
[1725762099488,45.0,128.4,128.34,1.56159088]
[1725762104808,45.0,128.4,128.33,30.39634013]